[Event "Late-Titled-Tuesday-Blitz-November-28-2023"]
[Site "Chess.com"]
[Date "2023.11.28"]
[Round "4"]
[White "SergioMoralesG"]
[Black "jup1978"]
[Result "1-0"]
[WhiteElo "2366"]
[BlackElo "2515"]
[TimeControl "180+1"]
[EndTime "14:35:45 PST"]
[Termination "SergioMoralesG won by checkmate"]

1. d4 {[%clk 0:02:56.7]} 1... Nf6 {[%clk 0:02:57.9]} 2. c4 {[%clk 0:02:56.8]}
2... d6 {[%clk 0:02:56]} 3. Nf3 {[%clk 0:02:55.8]} 3... g6 {[%clk 0:02:52.4]} 4.
Nc3 {[%clk 0:02:55.5]} 4... Bf5 {[%clk 0:02:49.7]} 5. Qb3 {[%clk 0:02:49.3]}
5... b6 {[%clk 0:02:43]} 6. Bg5 {[%clk 0:02:37.9]} 6... Bg7 {[%clk 0:02:42.2]}
7. g3 {[%clk 0:02:32.1]} 7... O-O {[%clk 0:02:40.1]} 8. Bg2 {[%clk 0:02:32.1]}
8... Ne4 {[%clk 0:02:40.7]} 9. Nxe4 {[%clk 0:02:27.4]} 9... Bxe4 {[%clk
0:02:40.4]} 10. O-O {[%clk 0:02:27.9]} 10... Nc6 {[%clk 0:02:37.6]} 11. d5
{[%clk 0:02:14.1]} 11... Na5 {[%clk 0:02:33.9]} 12. Qe3 {[%clk 0:01:51.7]} 12...
Bxf3 {[%clk 0:02:16]} 13. Bxe7 {[%clk 0:01:43.5]} 13... Qe8 {[%clk 0:02:14.7]}
14. exf3 {[%clk 0:01:08.9]} 14... Bxb2 {[%clk 0:02:07.2]} 15. Rab1 {[%clk
0:00:59.7]} 15... Bg7 {[%clk 0:02:05.1]} 16. Bxf8 {[%clk 0:00:52]} 16... Bxf8
{[%clk 0:02:06]} 17. Rfe1 {[%clk 0:00:47.3]} 17... Qa4 {[%clk 0:02:03.3]} 18. f4
{[%clk 0:00:39.5]} 18... Nxc4 {[%clk 0:02:00.2]} 19. Qe2 {[%clk 0:00:39.5]}
19... b5 {[%clk 0:01:58.2]} 20. f5 {[%clk 0:00:38.7]} 20... a6 {[%clk
0:01:56.6]} 21. fxg6 {[%clk 0:00:38.4]} 21... hxg6 {[%clk 0:01:56.2]} 22. h4
{[%clk 0:00:39]} 22... Ne5 {[%clk 0:01:45.9]} 23. f4 {[%clk 0:00:39]} 23... Qd4+
{[%clk 0:01:45.1]} 24. Kh1 {[%clk 0:00:35.9]} 24... Nc4 {[%clk 0:01:38]} 25. h5
{[%clk 0:00:35.1]} 25... Kg7 {[%clk 0:01:37.8]} 26. hxg6 {[%clk 0:00:31.8]}
26... fxg6 {[%clk 0:01:37.3]} 27. Qg4 {[%clk 0:00:28.6]} 27... Qf6 {[%clk
0:01:34]} 28. Be4 {[%clk 0:00:15.7]} 28... Be7 {[%clk 0:01:31.5]} 29. Bd3 {[%clk
0:00:15.7]} 29... Rh8+ {[%clk 0:01:30.1]} 30. Kg2 {[%clk 0:00:16]} 30... Bf8
{[%clk 0:01:28]} 31. Re6 {[%clk 0:00:15.8]} 31... Qf7 {[%clk 0:01:18.8]} 32.
Rxg6+ {[%clk 0:00:15.4]} 32... Kh7 {[%clk 0:01:18]} 33. Rh1+ {[%clk 0:00:15.8]}
33... Bh6 {[%clk 0:01:16.8]} 34. Rhxh6# {[%clk 0:00:16.4]} 1-0

[Event "Late-Titled-Tuesday-Blitz-November-28-2023"]
[Site "Chess.com"]
[Date "2023.11.28"]
[Round "4"]
[White "bazar-wokzal"]
[Black "semchik73"]
[Result "1-0"]
[WhiteElo "2631"]
[BlackElo "2399"]
[TimeControl "180+1"]
[EndTime "14:35:47 PST"]
[Termination "bazar-wokzal won by resignation"]

1. e4 {[%clk 0:03:00.9]} 1... Nf6 {[%clk 0:02:59.8]} 2. e5 {[%clk 0:03:00.8]}
2... Nd5 {[%clk 0:03:00.2]} 3. d4 {[%clk 0:03:00.2]} 3... d6 {[%clk 0:03:00.6]}
4. c4 {[%clk 0:02:59.5]} 4... Nb6 {[%clk 0:03:00.4]} 5. f4 {[%clk 0:02:59.9]}
5... dxe5 {[%clk 0:03:00.6]} 6. fxe5 {[%clk 0:03:00.3]} 6... Nc6 {[%clk
0:03:01.3]} 7. Be3 {[%clk 0:03:00.2]} 7... Bf5 {[%clk 0:03:01.6]} 8. Nc3 {[%clk
0:03:00.6]} 8... e6 {[%clk 0:03:02.2]} 9. Nf3 {[%clk 0:03:01]} 9... Bg4 {[%clk
0:03:02.8]} 10. Be2 {[%clk 0:03:00.6]} 10... Bxf3 {[%clk 0:03:03.1]} 11. gxf3
{[%clk 0:02:57.3]} 11... Qh4+ {[%clk 0:03:03]} 12. Bf2 {[%clk 0:02:57.2]} 12...
Qf4 {[%clk 0:03:03.3]} 13. Ne4 {[%clk 0:02:50.4]} 13... Bb4+ {[%clk 0:02:59.2]}
14. Kf1 {[%clk 0:02:50.3]} 14... O-O-O {[%clk 0:02:57]} 15. c5 {[%clk 0:02:40]}
15... Nd5 {[%clk 0:02:00.5]} 16. a3 {[%clk 0:02:39.1]} 16... Ne3+ {[%clk
0:01:51.9]} 17. Bxe3 {[%clk 0:02:38.8]} 17... Qxe3 {[%clk 0:01:52.3]} 18. axb4
{[%clk 0:02:37.7]} 18... Nxd4 {[%clk 0:01:48]} 19. Qd3 {[%clk 0:02:16.3]} 19...
Qxd3 {[%clk 0:01:36.8]} 20. Bxd3 {[%clk 0:02:16.2]} 20... Nxf3 {[%clk
0:01:37.6]} 21. Be2 {[%clk 0:02:08.9]} 21... Nxe5 {[%clk 0:01:37.7]} 22. Rxa7
{[%clk 0:02:08.2]} 22... Kb8 {[%clk 0:01:38.3]} 23. Ra3 {[%clk 0:02:06.6]} 23...
Rd4 {[%clk 0:01:38.1]} 24. Nc3 {[%clk 0:01:52]} 24... Rxb4 {[%clk 0:01:37.6]}
25. Kf2 {[%clk 0:01:52.2]} 25... Rxb2 {[%clk 0:01:36.8]} 26. Rha1 {[%clk
0:01:51.5]} 26... c6 {[%clk 0:01:16.5]} 27. Ra8+ {[%clk 0:01:50.5]} 27... Kc7
{[%clk 0:01:17.2]} 28. Rxh8 {[%clk 0:01:50.3]} 28... Nd3+ {[%clk 0:01:17.7]} 29.
Ke3 {[%clk 0:01:49.4]} 29... Nxc5 {[%clk 0:01:18.1]} 30. Rxh7 {[%clk 0:01:45]}
30... Nb3 {[%clk 0:01:14]} 31. Rf1 {[%clk 0:01:40.5]} 31... f5 {[%clk
0:01:12.5]} 32. Rxg7+ {[%clk 0:01:38.7]} 32... Kd6 {[%clk 0:01:13.2]} 33. h4
{[%clk 0:01:34.4]} 33... Rc2 {[%clk 0:01:09.7]} 34. Na4 {[%clk 0:01:25.9]} 34...
e5 {[%clk 0:01:06.4]} 35. Bd1 {[%clk 0:01:17.5]} 35... f4+ {[%clk 0:01:04]} 36.
Kd3 {[%clk 0:01:15.6]} 36... Rd2+ {[%clk 0:00:53.8]} 37. Kc3 {[%clk 0:01:15.7]}
37... b5 {[%clk 0:00:40.6]} 38. Bxb3 {[%clk 0:01:14.3]} 38... Rh2 {[%clk
0:00:38.3]} 39. Rd1+ {[%clk 0:01:13.8]} 1-0

[Event "Late-Titled-Tuesday-Blitz-November-28-2023"]
[Site "Chess.com"]
[Date "2023.11.28"]
[Round "4"]
[White "Nf3c5"]
[Black "ashookk"]
[Result "1-0"]
[WhiteElo "2494"]
[BlackElo "2318"]
[TimeControl "180+1"]
[EndTime "14:35:51 PST"]
[Termination "Nf3c5 won by resignation"]

1. d4 {[%clk 0:02:54.4]} 1... Nf6 {[%clk 0:02:57.7]} 2. Nf3 {[%clk 0:02:54.5]}
2... g6 {[%clk 0:02:55.4]} 3. e3 {[%clk 0:02:49]} 3... Bg7 {[%clk 0:02:55]} 4.
Be2 {[%clk 0:02:49.6]} 4... O-O {[%clk 0:02:55.3]} 5. O-O {[%clk 0:02:50.3]}
5... d6 {[%clk 0:02:55.7]} 6. b3 {[%clk 0:02:50.2]} 6... c5 {[%clk 0:02:56.1]}
7. Bb2 {[%clk 0:02:50.2]} 7... Nc6 {[%clk 0:02:56.8]} 8. c4 {[%clk 0:02:40.2]}
8... Bg4 {[%clk 0:02:55]} 9. Nbd2 {[%clk 0:02:35.2]} 9... Nd7 {[%clk 0:02:54.1]}
10. h3 {[%clk 0:02:34.9]} 10... Bxf3 {[%clk 0:02:53.8]} 11. Nxf3 {[%clk
0:02:35.7]} 11... Qb6 {[%clk 0:02:49.5]} 12. Qd2 {[%clk 0:02:33.7]} 12... a5
{[%clk 0:02:41.1]} 13. d5 {[%clk 0:02:23.7]} 13... Nce5 {[%clk 0:02:37]} 14. Nh2
{[%clk 0:02:03.6]} 14... f5 {[%clk 0:02:20.3]} 15. f4 {[%clk 0:01:45.5]} 15...
Nf7 {[%clk 0:02:19.7]} 16. Bxg7 {[%clk 0:01:46.3]} 16... Kxg7 {[%clk 0:02:20.2]}
17. Qb2+ {[%clk 0:01:40.5]} 17... Kg8 {[%clk 0:02:18.4]} 18. a4 {[%clk 0:01:41]}
18... Nf6 {[%clk 0:02:16.4]} 19. Bf3 {[%clk 0:01:37.3]} 19... Rae8 {[%clk
0:01:57.1]} 20. Rad1 {[%clk 0:01:24.9]} 20... Nd7 {[%clk 0:01:47.4]} 21. e4
{[%clk 0:01:17.2]} 21... fxe4 {[%clk 0:01:34.2]} 22. Bxe4 {[%clk 0:01:16.3]}
22... Nf6 {[%clk 0:01:34.2]} 23. Bf3 {[%clk 0:01:07.2]} 23... e5 {[%clk
0:01:34.4]} 24. dxe6 {[%clk 0:01:00.7]} 24... Rxe6 {[%clk 0:01:34.8]} 25. Bg4
{[%clk 0:00:54.7]} 25... Nxg4 {[%clk 0:01:23.1]} 26. Nxg4 {[%clk 0:00:55.6]}
26... Qd8 {[%clk 0:00:56.7]} 27. f5 {[%clk 0:00:49.4]} 27... gxf5 {[%clk
0:00:57.6]} 28. Rxf5 {[%clk 0:00:49.4]} 28... Ne5 {[%clk 0:00:48.8]} 29. Rxe5
{[%clk 0:00:43.2]} 1-0

[Event "Late-Titled-Tuesday-Blitz-November-28-2023"]
[Site "Chess.com"]
[Date "2023.11.28"]
[Round "4"]
[White "ploxoi"]
[Black "Goryachkina"]
[Result "0-1"]
[WhiteElo "2463"]
[BlackElo "2646"]
[TimeControl "180+1"]
[EndTime "14:35:52 PST"]
[Termination "Goryachkina won by resignation"]

1. d4 {[%clk 0:03:00.9]} 1... Nf6 {[%clk 0:02:57.8]} 2. c4 {[%clk 0:03:01.4]}
2... e6 {[%clk 0:02:58]} 3. g3 {[%clk 0:03:01.7]} 3... d5 {[%clk 0:02:57.2]} 4.
Nf3 {[%clk 0:03:02.3]} 4... Bb4+ {[%clk 0:02:56.8]} 5. Bd2 {[%clk 0:03:02.1]}
5... a5 {[%clk 0:02:56.6]} 6. Bg2 {[%clk 0:03:02.4]} 6... O-O {[%clk 0:02:56.7]}
7. O-O {[%clk 0:03:02.7]} 7... dxc4 {[%clk 0:02:55.9]} 8. Qc2 {[%clk 0:03:03.2]}
8... Bxd2 {[%clk 0:02:53.4]} 9. Qxd2 {[%clk 0:03:03.7]} 9... b5 {[%clk
0:02:45.7]} 10. a4 {[%clk 0:03:03.6]} 10... c6 {[%clk 0:02:44.2]} 11. Na3 {[%clk
0:03:04.1]} 11... Qb6 {[%clk 0:02:35.1]} 12. Rfc1 {[%clk 0:03:01.4]} 12... Bb7
{[%clk 0:02:31.6]} 13. Rab1 {[%clk 0:02:46.4]} 13... Nbd7 {[%clk 0:02:29.4]} 14.
b3 {[%clk 0:02:32.8]} 14... c3 {[%clk 0:02:27]} 15. Qc2 {[%clk 0:02:21.4]} 15...
b4 {[%clk 0:02:23.7]} 16. Nc4 {[%clk 0:02:21.6]} 16... Qc7 {[%clk 0:02:24]} 17.
e4 {[%clk 0:02:22.2]} 17... h6 {[%clk 0:02:21.3]} 18. Nfe5 {[%clk 0:02:17.7]}
18... Ba6 {[%clk 0:02:08.1]} 19. Rd1 {[%clk 0:02:11.4]} 19... Rfd8 {[%clk
0:01:59.4]} 20. Nxd7 {[%clk 0:01:28.9]} 20... Nxd7 {[%clk 0:01:59.1]} 21. Ne3
{[%clk 0:01:27.9]} 21... Nf6 {[%clk 0:01:36.8]} 22. Qc1 {[%clk 0:01:09.7]} 22...
Qb6 {[%clk 0:01:26.4]} 23. Nc2 {[%clk 0:01:08.1]} 23... Rd7 {[%clk 0:01:21.5]}
24. h3 {[%clk 0:01:04.5]} 24... Rad8 {[%clk 0:01:21.2]} 25. Re1 {[%clk
0:00:54.7]} 25... c5 {[%clk 0:01:19.6]} 26. d5 {[%clk 0:00:39]} 26... exd5
{[%clk 0:01:17.3]} 27. exd5 {[%clk 0:00:20.4]} 27... Nxd5 {[%clk 0:01:13.6]} 28.
Kh2 {[%clk 0:00:21]} 28... Bd3 {[%clk 0:01:11.7]} 29. Bf3 {[%clk 0:00:19.3]}
29... c4 {[%clk 0:01:08.2]} 30. bxc4 {[%clk 0:00:18.5]} 30... Qxf2+ {[%clk
0:01:08]} 31. Bg2 {[%clk 0:00:18.2]} 31... Bxc2 {[%clk 0:01:07.9]} 0-1

[Event "Late-Titled-Tuesday-Blitz-November-28-2023"]
[Site "Chess.com"]
[Date "2023.11.28"]
[Round "4"]
[White "Hikaru"]
[Black "IlyaGrigorjev"]
[Result "1-0"]
[WhiteElo "3223"]
[BlackElo "2900"]
[TimeControl "180+1"]
[EndTime "14:35:56 PST"]
[Termination "Hikaru won on time"]

1. g3 {[%clk 0:03:00.9]} 1... Nf6 {[%clk 0:02:59.8]} 2. Bg2 {[%clk 0:03:00.7]}
2... d5 {[%clk 0:03:00.3]} 3. d3 {[%clk 0:03:00.5]} 3... g6 {[%clk 0:03:00.6]}
4. Bd2 {[%clk 0:02:59.1]} 4... Bg7 {[%clk 0:02:56.3]} 5. Qc1 {[%clk 0:02:59.4]}
5... O-O {[%clk 0:02:52.1]} 6. Bh6 {[%clk 0:02:58.8]} 6... e5 {[%clk 0:02:42.5]}
7. h4 {[%clk 0:02:58.2]} 7... Bxh6 {[%clk 0:02:42.9]} 8. Qxh6 {[%clk 0:02:58.3]}
8... Ng4 {[%clk 0:02:43.5]} 9. Qd2 {[%clk 0:02:59]} 9... h5 {[%clk 0:02:40.4]}
10. f3 {[%clk 0:02:59]} 10... Nf6 {[%clk 0:02:39.5]} 11. e4 {[%clk 0:02:59.7]}
11... Nc6 {[%clk 0:02:35.5]} 12. Nc3 {[%clk 0:02:58.8]} 12... Be6 {[%clk
0:02:33]} 13. Nh3 {[%clk 0:02:53.5]} 13... dxe4 {[%clk 0:02:32.3]} 14. dxe4
{[%clk 0:02:53]} 14... Qxd2+ {[%clk 0:02:32.2]} 15. Kxd2 {[%clk 0:02:53.9]}
15... Rfd8+ {[%clk 0:02:28.6]} 16. Ke3 {[%clk 0:02:53.9]} 16... Nd4 {[%clk
0:02:21.2]} 17. Rhc1 {[%clk 0:02:53.7]} 17... c6 {[%clk 0:02:13.8]} 18. Nf2
{[%clk 0:02:51.8]} 18... Rd7 {[%clk 0:02:11.9]} 19. Nd3 {[%clk 0:02:50.2]} 19...
Rad8 {[%clk 0:01:48.3]} 20. Nxe5 {[%clk 0:02:46.3]} 20... Rd6 {[%clk 0:01:37.7]}
21. Bf1 {[%clk 0:02:46]} 21... b5 {[%clk 0:01:31.5]} 22. Nd3 {[%clk 0:02:42.5]}
22... Bc4 {[%clk 0:01:26.1]} 23. Nd1 {[%clk 0:02:09.6]} 23... Nxc2+ {[%clk
0:01:23.6]} 24. Rxc2 {[%clk 0:02:10.1]} 24... Bxd3 {[%clk 0:01:24.3]} 25. Bxd3
{[%clk 0:02:10.5]} 25... Rxd3+ {[%clk 0:01:25.2]} 26. Ke2 {[%clk 0:02:11.3]}
26... R3d6 {[%clk 0:01:17.7]} 27. Nf2 {[%clk 0:02:11.2]} 27... Nd7 {[%clk
0:01:15.9]} 28. Nd3 {[%clk 0:02:11.1]} 28... Nb6 {[%clk 0:01:12.4]} 29. Nf2
{[%clk 0:02:03.8]} 29... Kf8 {[%clk 0:01:06.5]} 30. b3 {[%clk 0:02:01.9]} 30...
Ke7 {[%clk 0:00:59.4]} 31. Rac1 {[%clk 0:02:01.5]} 31... c5 {[%clk 0:00:47.4]}
32. Rxc5 {[%clk 0:02:01.3]} 32... Rd2+ {[%clk 0:00:47.5]} 33. Ke3 {[%clk
0:02:02]} 33... Rxa2 {[%clk 0:00:48.4]} 34. Rxb5 {[%clk 0:02:01.5]} 34... Rdd2
{[%clk 0:00:22.8]} 35. Nd3 {[%clk 0:02:01.3]} 35... Kf6 {[%clk 0:00:20.4]} 36.
Rc6+ {[%clk 0:01:58.6]} 36... Kg7 {[%clk 0:00:20.7]} 37. Rc7 {[%clk 0:01:58.3]}
37... Re2+ {[%clk 0:00:19]} 38. Kf4 {[%clk 0:01:57.6]} 38... Rac2 {[%clk
0:00:05.6]} 39. Rxa7 {[%clk 0:01:48.6]} 39... Rc6 {[%clk 0:00:06.1]} 40. Rxf7+
{[%clk 0:01:44.9]} 40... Kxf7 {[%clk 0:00:03.5]} 41. Ne5+ {[%clk 0:01:45.1]}
41... Kf6 {[%clk 0:00:04.4]} 42. Nxc6 {[%clk 0:01:46]} 42... Nd7 {[%clk
0:00:02.3]} 43. e5+ {[%clk 0:01:46.5]} 43... Kg7 {[%clk 0:00:01.4]} 44. Rb7
{[%clk 0:01:45.5]} 1-0

[Event "Late-Titled-Tuesday-Blitz-November-28-2023"]
[Site "Chess.com"]
[Date "2023.11.28"]
[Round "4"]
[White "e4evr"]
[Black "Aradhya2000"]
[Result "0-1"]
[WhiteElo "2133"]
[BlackElo "2726"]
[TimeControl "180+1"]
[EndTime "14:35:57 PST"]
[Termination "Aradhya2000 won by checkmate"]

1. e4 {[%clk 0:03:00]} 1... e5 {[%clk 0:03:00.1]} 2. Nf3 {[%clk 0:02:59.4]} 2...
Nc6 {[%clk 0:03:00.4]} 3. Bb5 {[%clk 0:03:00]} 3... a6 {[%clk 0:03:00.5]} 4. Ba4
{[%clk 0:03:00.2]} 4... Nf6 {[%clk 0:03:01]} 5. O-O {[%clk 0:03:00.1]} 5... b5
{[%clk 0:03:01.6]} 6. Bb3 {[%clk 0:03:00.1]} 6... Bc5 {[%clk 0:03:02.3]} 7. Nxe5
{[%clk 0:03:00.5]} 7... Nxe5 {[%clk 0:03:02.2]} 8. d4 {[%clk 0:03:00.9]} 8...
Bxd4 {[%clk 0:03:02.8]} 9. Qxd4 {[%clk 0:03:01.3]} 9... d6 {[%clk 0:03:03.5]}
10. c3 {[%clk 0:03:01.2]} 10... O-O {[%clk 0:02:58.6]} 11. Bg5 {[%clk
0:03:00.3]} 11... h6 {[%clk 0:02:58.3]} 12. Bh4 {[%clk 0:02:59.7]} 12... c5
{[%clk 0:02:55.4]} 13. Qd1 {[%clk 0:02:57.8]} 13... c4 {[%clk 0:02:46.4]} 14.
Bc2 {[%clk 0:02:57.5]} 14... Bb7 {[%clk 0:02:45.2]} 15. f3 {[%clk 0:02:57.6]}
15... Re8 {[%clk 0:02:43.5]} 16. Nd2 {[%clk 0:02:52.4]} 16... Ng6 {[%clk
0:02:43.3]} 17. Bg3 {[%clk 0:02:51.4]} 17... d5 {[%clk 0:02:43]} 18. exd5 {[%clk
0:02:50.6]} 18... Nxd5 {[%clk 0:02:43.2]} 19. Bxg6 {[%clk 0:02:49.1]} 19... Ne3
{[%clk 0:02:42.8]} 20. Qb1 {[%clk 0:02:44.3]} 20... Nxf1 {[%clk 0:02:36.7]} 21.
Bh7+ {[%clk 0:02:44.2]} 21... Kh8 {[%clk 0:02:36.7]} 22. Nxf1 {[%clk 0:02:44.8]}
22... g6 {[%clk 0:02:36.2]} 23. Bxg6 {[%clk 0:02:44.4]} 23... Qb6+ {[%clk
0:02:36.1]} 24. Kh1 {[%clk 0:02:38.2]} 24... Qxg6 {[%clk 0:02:33.5]} 25. Qc1
{[%clk 0:02:38.5]} 25... Re2 {[%clk 0:02:31.1]} 26. Ne3 {[%clk 0:02:31]} 26...
Re8 {[%clk 0:02:25.7]} 27. Ng4 {[%clk 0:02:25.4]} 27... h5 {[%clk 0:02:24.5]}
28. Qh6+ {[%clk 0:02:13.7]} 28... Qxh6 {[%clk 0:02:22.2]} 29. Nxh6 {[%clk
0:02:14.6]} 29... Bd5 {[%clk 0:01:54.3]} 30. Nf5 {[%clk 0:02:09.7]} 30... Rxb2
{[%clk 0:01:53]} 31. h4 {[%clk 0:02:04.8]} 31... Ree2 {[%clk 0:01:52.1]} 32. Rd1
{[%clk 0:02:00.2]} 32... Be6 {[%clk 0:01:51.5]} 33. Rd8+ {[%clk 0:01:58.7]}
33... Kh7 {[%clk 0:01:51.6]} 34. Nd4 {[%clk 0:01:34.1]} 34... Rxg2 {[%clk
0:01:49.7]} 35. Be5 {[%clk 0:01:33.9]} 35... Rg8 {[%clk 0:01:40.3]} 36. Nxe6
{[%clk 0:01:32.5]} 36... fxe6 {[%clk 0:01:40.2]} 37. Rd7+ {[%clk 0:01:30.2]}
37... Kg6 {[%clk 0:01:39.2]} 38. Rd6 {[%clk 0:01:21.1]} 38... Kf5 {[%clk
0:01:38]} 39. Bd4 {[%clk 0:01:19.7]} 39... Rg3 {[%clk 0:01:30.6]} 40. Rxa6
{[%clk 0:01:14.8]} 40... Rxf3 {[%clk 0:01:30.4]} 41. Ra8 {[%clk 0:01:11.4]}
41... Rf1+ {[%clk 0:01:29.7]} 42. Bg1 {[%clk 0:01:12]} 42... Rbb1 {[%clk
0:01:26.6]} 43. Rf8+ {[%clk 0:01:12.2]} 43... Kg4 {[%clk 0:01:25.4]} 44. Rxf1
{[%clk 0:01:10.5]} 44... Rxf1 {[%clk 0:01:25]} 45. Kg2 {[%clk 0:01:11.1]} 45...
Ra1 {[%clk 0:01:24.8]} 46. Bf2 {[%clk 0:01:08]} 46... Rxa2 {[%clk 0:01:24.6]}
47. Kg1 {[%clk 0:01:08.2]} 47... Kf3 {[%clk 0:01:24.3]} 48. Bd4 {[%clk 0:01:07]}
48... Rd2 {[%clk 0:01:23.2]} 49. Bb6 {[%clk 0:01:06.2]} 49... e5 {[%clk
0:01:20.8]} 50. Kh1 {[%clk 0:01:06.3]} 50... e4 {[%clk 0:01:21]} 51. Bg1 {[%clk
0:01:05.7]} 51... e3 {[%clk 0:01:20.7]} 52. Bh2 {[%clk 0:01:02.6]} 52... Rd1+
{[%clk 0:01:20.2]} 53. Bg1 {[%clk 0:01:02.7]} 53... e2 {[%clk 0:01:20.7]} 54.
Kh2 {[%clk 0:00:59.8]} 54... e1=Q {[%clk 0:01:20.9]} 55. Bf2 {[%clk 0:00:58.7]}
55... Qh1# {[%clk 0:01:20.8]} 0-1

[Event "Late-Titled-Tuesday-Blitz-November-28-2023"]
[Site "Chess.com"]
[Date "2023.11.28"]
[Round "4"]
[White "Meri-Arabidze"]
[Black "Schwindle"]
[Result "1-0"]
[WhiteElo "2681"]
[BlackElo "2377"]
[TimeControl "180+1"]
[EndTime "14:35:57 PST"]
[Termination "Meri-Arabidze won by resignation"]

1. b3 {[%clk 0:03:00.9]} 1... d6 {[%clk 0:02:58.8]} 2. Bb2 {[%clk 0:03:01.1]}
2... Nc6 {[%clk 0:02:59.4]} 3. Nf3 {[%clk 0:03:00.5]} 3... e5 {[%clk 0:03:00]}
4. c4 {[%clk 0:03:00.1]} 4... Nf6 {[%clk 0:02:59.6]} 5. g3 {[%clk 0:03:00.1]}
5... Bg4 {[%clk 0:02:59.7]} 6. Bg2 {[%clk 0:03:00.2]} 6... Qd7 {[%clk
0:03:00.4]} 7. h3 {[%clk 0:02:56.6]} 7... Bf5 {[%clk 0:02:59.8]} 8. d3 {[%clk
0:02:56.2]} 8... h6 {[%clk 0:02:59]} 9. Nc3 {[%clk 0:02:53]} 9... O-O-O {[%clk
0:02:58.9]} 10. e4 {[%clk 0:02:51.8]} 10... Be6 {[%clk 0:02:50.2]} 11. Nd5
{[%clk 0:02:51.9]} 11... Ne8 {[%clk 0:02:44.6]} 12. Qd2 {[%clk 0:02:34.9]} 12...
Kb8 {[%clk 0:02:41.7]} 13. b4 {[%clk 0:02:34.9]} 13... Ne7 {[%clk 0:02:39.7]}
14. b5 {[%clk 0:02:34.2]} 14... g6 {[%clk 0:02:34.3]} 15. a4 {[%clk 0:02:24.5]}
15... Bg7 {[%clk 0:02:32.7]} 16. a5 {[%clk 0:02:24.3]} 16... f5 {[%clk
0:02:27.4]} 17. b6 {[%clk 0:02:12.4]} 17... Bxd5 {[%clk 0:02:10.6]} 18. bxa7+
{[%clk 0:01:58.4]} 18... Kxa7 {[%clk 0:02:06.2]} 19. cxd5 {[%clk 0:01:58.6]}
19... Nf6 {[%clk 0:01:58.2]} 20. O-O {[%clk 0:01:55.9]} 20... fxe4 {[%clk
0:01:55.7]} 21. Qe3+ {[%clk 0:01:56.1]} 21... Ka8 {[%clk 0:01:54.8]} 22. dxe4
{[%clk 0:01:56]} 22... Qb5 {[%clk 0:01:50.6]} 23. Rfb1 {[%clk 0:01:55.2]} 23...
Qa6 {[%clk 0:01:47.9]} 24. Bf1 {[%clk 0:01:54.3]} 24... Qa7 {[%clk 0:01:47.5]}
25. Qe2 {[%clk 0:01:40.7]} 25... Rhf8 {[%clk 0:01:36.2]} 26. a6 {[%clk
0:01:40.9]} 26... b6 {[%clk 0:01:34.9]} 27. Bc1 {[%clk 0:01:35.5]} 27... g5
{[%clk 0:01:33.9]} 28. Qd3 {[%clk 0:01:19.2]} 28... Nd7 {[%clk 0:01:30.9]} 29.
Bg2 {[%clk 0:01:11.6]} 29... Nc5 {[%clk 0:01:30.6]} 30. Qc4 {[%clk 0:01:11.8]}
30... Rf7 {[%clk 0:01:15.4]} 31. Be3 {[%clk 0:01:11.5]} 31... Rdf8 {[%clk
0:01:12.2]} 32. Nd2 {[%clk 0:01:11.7]} 32... Ng6 {[%clk 0:01:07.2]} 33. Nb3
{[%clk 0:01:09.9]} 33... Nf4 {[%clk 0:01:07.2]} 34. Nxc5 {[%clk 0:01:05.1]}
34... dxc5 {[%clk 0:01:01.8]} 35. Qb5 {[%clk 0:01:01.4]} 35... Nxg2 {[%clk
0:00:55.5]} 36. Bxc5 {[%clk 0:00:56.2]} 36... Re8 {[%clk 0:00:41.7]} 37. Qxe8+
{[%clk 0:00:53.8]} 1-0

[Event "Late-Titled-Tuesday-Blitz-November-28-2023"]
[Site "Chess.com"]
[Date "2023.11.28"]
[Round "4"]
[White "morte-negra"]
[Black "carloseduar100"]
[Result "0-1"]
[WhiteElo "2015"]
[BlackElo "2261"]
[TimeControl "180+1"]
[EndTime "14:35:57 PST"]
[Termination "carloseduar100 won on time"]

1. e4 {[%clk 0:03:00.9]} 1... e6 {[%clk 0:02:55.9]} 2. d4 {[%clk 0:03:00]} 2...
d5 {[%clk 0:02:56.8]} 3. e5 {[%clk 0:03:00.5]} 3... c5 {[%clk 0:02:57.1]} 4. c3
{[%clk 0:03:00.3]} 4... Nc6 {[%clk 0:02:58]} 5. Nf3 {[%clk 0:03:00.6]} 5... Qb6
{[%clk 0:02:58.4]} 6. Bd3 {[%clk 0:02:58.2]} 6... Bd7 {[%clk 0:02:58.1]} 7. O-O
{[%clk 0:02:53.1]} 7... cxd4 {[%clk 0:02:58.3]} 8. a3 {[%clk 0:02:28.4]} 8...
Nh6 {[%clk 0:02:58.4]} 9. b4 {[%clk 0:02:26.3]} 9... dxc3 {[%clk 0:02:56.5]} 10.
Nxc3 {[%clk 0:02:24.1]} 10... a6 {[%clk 0:02:55.7]} 11. Na4 {[%clk 0:02:16.9]}
11... Qc7 {[%clk 0:02:55.5]} 12. Bxh6 {[%clk 0:02:15.5]} 12... gxh6 {[%clk
0:02:55.6]} 13. Nc5 {[%clk 0:02:03.5]} 13... Nxe5 {[%clk 0:02:50.4]} 14. Nxe5
{[%clk 0:02:01.5]} 14... Qxe5 {[%clk 0:02:51.3]} 15. Nxd7 {[%clk 0:02:00.8]}
15... Kxd7 {[%clk 0:02:52.2]} 16. Re1 {[%clk 0:02:00.4]} 16... Qd6 {[%clk
0:02:44.4]} 17. Qh5 {[%clk 0:01:55.6]} 17... Be7 {[%clk 0:02:37.2]} 18. b5
{[%clk 0:01:44.5]} 18... a5 {[%clk 0:02:29.6]} 19. b6 {[%clk 0:01:32.3]} 19...
Raf8 {[%clk 0:02:28.4]} 20. Rac1 {[%clk 0:01:27.7]} 20... Kd8 {[%clk 0:02:25.1]}
21. Rc7 {[%clk 0:01:14.4]} 21... Qxb6 {[%clk 0:02:22.9]} 22. Rec1 {[%clk
0:01:13.7]} 22... Bxa3 {[%clk 0:02:10.4]} 23. Qh4+ {[%clk 0:01:00.9]} 23... f6
{[%clk 0:02:07.1]} 24. Rc8+ {[%clk 0:00:57.4]} 24... Ke7 {[%clk 0:02:04.8]} 25.
R1c7+ {[%clk 0:00:55]} 25... Kd6 {[%clk 0:02:04.9]} 26. Qa4 {[%clk 0:00:37.5]}
26... Rxc8 {[%clk 0:01:48.3]} 27. Rd7+ {[%clk 0:00:16.2]} 27... Kc5 {[%clk
0:01:44.1]} 28. Qxa3+ {[%clk 0:00:15.1]} 28... Qb4 {[%clk 0:01:41.9]} 29. Qc1+
{[%clk 0:00:09.2]} 29... Kb6 {[%clk 0:01:39.9]} 30. Qe3+ {[%clk 0:00:09.1]}
30... d4 {[%clk 0:01:29.5]} 31. Qxe6+ {[%clk 0:00:08.6]} 31... Rc6 {[%clk
0:01:30.1]} 32. Qe2 {[%clk 0:00:02.1]} 32... Rc1+ {[%clk 0:01:28.2]} 0-1